[Event "Late-Titled-Tuesday-Blitz-June-04-2024"]
[Site "Chess.com"]
[Date "2024.06.04"]
[Round "4"]
[White "AradNazari"]
[Black "yobdc"]
[Result "0-1"]
[WhiteElo "2724"]
[BlackElo "2552"]
[TimeControl "180+1"]
[EndTime "14:39:35 PDT"]
[Termination "yobdc won by checkmate"]

1. Na3 {[%clk 0:03:00.9]} 1... e5 {[%clk 0:02:57.5]} 2. c3 {[%clk 0:03:01.2]}
2... Bxa3 {[%clk 0:02:57]} 3. bxa3 {[%clk 0:03:01.8]} 3... Nf6 {[%clk
0:02:57.4]} 4. g3 {[%clk 0:02:59.3]} 4... d5 {[%clk 0:02:57.2]} 5. Bg2 {[%clk
0:02:59.4]} 5... Nc6 {[%clk 0:02:57]} 6. a4 {[%clk 0:02:54.7]} 6... O-O {[%clk
0:02:56.1]} 7. Ba3 {[%clk 0:02:54.8]} 7... Re8 {[%clk 0:02:55.9]} 8. d3 {[%clk
0:02:49.6]} 8... e4 {[%clk 0:02:51.8]} 9. dxe4 {[%clk 0:02:47.8]} 9... Nxe4
{[%clk 0:02:51.4]} 10. Rc1 {[%clk 0:02:43.7]} 10... Qf6 {[%clk 0:02:43.8]} 11.
Bxe4 {[%clk 0:02:04.8]} 11... dxe4 {[%clk 0:02:43.1]} 12. Bc5 {[%clk 0:02:01]}
12... Bg4 {[%clk 0:02:28.3]} 13. h3 {[%clk 0:01:59.8]} 13... Rad8 {[%clk
0:02:28]} 14. Qb3 {[%clk 0:01:57]} 14... Be6 {[%clk 0:02:02]} 15. Qxb7 {[%clk
0:01:49.8]} 15... Bd5 {[%clk 0:02:00.5]} 16. Be3 {[%clk 0:01:49.5]} 16... Ne5
{[%clk 0:01:41]} 17. Qxc7 {[%clk 0:01:40.8]} 17... a6 {[%clk 0:00:42.2]} 18. h4
{[%clk 0:01:17.2]} 18... Nc4 {[%clk 0:00:17.2]} 19. Qf4 {[%clk 0:01:15]} 19...
Qc6 {[%clk 0:00:14.3]} 20. Nh3 {[%clk 0:01:11.4]} 20... h6 {[%clk 0:00:13.5]}
21. O-O {[%clk 0:01:07.2]} 21... Qxa4 {[%clk 0:00:13.6]} 22. Bd4 {[%clk
0:00:53.1]} 22... Qxa2 {[%clk 0:00:13]} 23. Qg4 {[%clk 0:00:51.8]} 23... Ne5
{[%clk 0:00:08.4]} 24. Qh5 {[%clk 0:00:50.9]} 24... Ng6 {[%clk 0:00:07.9]} 25.
Ra1 {[%clk 0:00:46.5]} 25... Qc2 {[%clk 0:00:07.6]} 26. Rfc1 {[%clk 0:00:45.2]}
26... Qd2 {[%clk 0:00:07.3]} 27. Be3 {[%clk 0:00:42.5]} 27... Qb2 {[%clk
0:00:06.9]} 28. Rxa6 {[%clk 0:00:33.9]} 28... Bc4 {[%clk 0:00:06.2]} 29. Rxg6
{[%clk 0:00:28.1]} 29... fxg6 {[%clk 0:00:07.1]} 30. Qxg6 {[%clk 0:00:28.5]}
30... Bf7 {[%clk 0:00:05.6]} 31. Qa6 {[%clk 0:00:19.3]} 31... Ra8 {[%clk
0:00:04.4]} 32. Qc6 {[%clk 0:00:13.4]} 32... Ra1 {[%clk 0:00:04.5]} 33. Rxa1
{[%clk 0:00:11.6]} 33... Qxa1+ {[%clk 0:00:05.4]} 34. Kg2 {[%clk 0:00:11.8]}
34... Qa8 {[%clk 0:00:05.9]} 35. Qc5 {[%clk 0:00:10.5]} 35... Qc8 {[%clk
0:00:05.9]} 36. Qd4 {[%clk 0:00:10.2]} 36... Qg4 {[%clk 0:00:05.7]} 37. Nf4
{[%clk 0:00:10.3]} 37... Be6 {[%clk 0:00:05.3]} 38. c4 {[%clk 0:00:06.7]} 38...
Bc8 {[%clk 0:00:04.8]} 39. c5 {[%clk 0:00:07.1]} 39... Kh7 {[%clk 0:00:04.5]}
40. c6 {[%clk 0:00:07]} 40... Qf5 {[%clk 0:00:04.3]} 41. Qc3 {[%clk 0:00:06.9]}
41... g5 {[%clk 0:00:04.6]} 42. hxg5 {[%clk 0:00:07.4]} 42... hxg5 {[%clk
0:00:05.5]} 43. Qb4 {[%clk 0:00:02.3]} 43... gxf4 {[%clk 0:00:04.9]} 44. Bxf4
{[%clk 0:00:03.2]} 44... Qf7 {[%clk 0:00:03.4]} 45. Qc5 {[%clk 0:00:02.5]} 45...
Qf5 {[%clk 0:00:03.3]} 46. Qd6 {[%clk 0:00:02.6]} 46... Be6 {[%clk 0:00:03.5]}
47. Qc7+ {[%clk 0:00:02.9]} 47... Kg6 {[%clk 0:00:03.7]} 48. Be5 {[%clk
0:00:03.3]} 48... Qf7 {[%clk 0:00:03.1]} 49. Qd6 {[%clk 0:00:03.6]} 49... Ra8
{[%clk 0:00:02.7]} 50. c7 {[%clk 0:00:03.8]} 50... Rc8 {[%clk 0:00:02.8]} 51.
Qd4 {[%clk 0:00:03.9]} 51... Bf5 {[%clk 0:00:02.3]} 52. g4 {[%clk 0:00:04]}
52... Bxg4 {[%clk 0:00:02.3]} 53. Qxe4+ {[%clk 0:00:04.7]} 53... Bf5 {[%clk
0:00:03]} 54. Qc6+ {[%clk 0:00:05.1]} 54... Qe6 {[%clk 0:00:03.2]} 55. Qc5
{[%clk 0:00:05.8]} 55... Kf7 {[%clk 0:00:03.5]} 56. f3 {[%clk 0:00:06.3]} 56...
Qd7 {[%clk 0:00:03.9]} 57. e4 {[%clk 0:00:06.2]} 57... Rg8+ {[%clk 0:00:04.2]}
58. Bg3 {[%clk 0:00:02.3]} 58... Be6 {[%clk 0:00:03.8]} 59. Qe3 {[%clk 0:00:01]}
59... Qxc7 {[%clk 0:00:02.9]} 60. f4 {[%clk 0:00:01]} 60... Qc2+ {[%clk
0:00:03.1]} 61. Kf3 {[%clk 0:00:01.7]} 61... Bg4# {[%clk 0:00:02.9]} 0-1

[Event "Late-Titled-Tuesday-Blitz-June-04-2024"]
[Site "Chess.com"]
[Date "2024.06.04"]
[Round "4"]
[White "picturesquecheck"]
[Black "alexrustemov"]
[Result "0-1"]
[WhiteElo "2453"]
[BlackElo "2822"]
[TimeControl "180+1"]
[EndTime "14:39:43 PDT"]
[Termination "alexrustemov won by resignation"]

1. g3 {[%clk 0:03:00.9]} 1... d5 {[%clk 0:02:59.6]} 2. Bg2 {[%clk 0:03:01.3]}
2... Nf6 {[%clk 0:02:59.8]} 3. Nf3 {[%clk 0:03:02]} 3... Bf5 {[%clk 0:02:59.3]}
4. O-O {[%clk 0:03:02.9]} 4... e6 {[%clk 0:02:59.1]} 5. d3 {[%clk 0:03:03.1]}
5... c6 {[%clk 0:02:56.3]} 6. Nbd2 {[%clk 0:03:03.2]} 6... h6 {[%clk 0:02:56.1]}
7. c4 {[%clk 0:03:04.1]} 7... Be7 {[%clk 0:02:53.2]} 8. Re1 {[%clk 0:03:04.3]}
8... O-O {[%clk 0:02:52.4]} 9. b3 {[%clk 0:03:04.4]} 9... a5 {[%clk 0:02:51.8]}
10. Bb2 {[%clk 0:03:04.8]} 10... Na6 {[%clk 0:02:47.4]} 11. e4 {[%clk
0:03:04.6]} 11... dxe4 {[%clk 0:02:45.8]} 12. dxe4 {[%clk 0:03:03.7]} 12... Bh7
{[%clk 0:02:46]} 13. Bxf6 {[%clk 0:02:41.3]} 13... Bxf6 {[%clk 0:02:44.9]} 14.
e5 {[%clk 0:02:41.8]} 14... Be7 {[%clk 0:02:43.3]} 15. Ne4 {[%clk 0:02:40.9]}
15... Nc5 {[%clk 0:02:36]} 16. Nxc5 {[%clk 0:02:22.2]} 16... Bxc5 {[%clk
0:02:35.5]} 17. Nd2 {[%clk 0:02:13.9]} 17... Bb4 {[%clk 0:02:32.8]} 18. Re2
{[%clk 0:02:07.1]} 18... Bd3 {[%clk 0:02:22.8]} 19. Re3 {[%clk 0:01:50.6]} 19...
Bc5 {[%clk 0:02:08.2]} 20. Re1 {[%clk 0:01:42]} 20... Qd4 {[%clk 0:01:59.4]} 21.
Qf3 {[%clk 0:01:20.8]} 21... Rfd8 {[%clk 0:01:48.5]} 22. Nf1 {[%clk 0:01:12.7]}
22... Bg6 {[%clk 0:01:29.7]} 23. Qe2 {[%clk 0:01:05.2]} 23... Bd3 {[%clk
0:01:13.3]} 24. Qf3 {[%clk 0:01:04.8]} 24... Bxf1 {[%clk 0:01:12.9]} 25. Bxf1
{[%clk 0:01:00.7]} 25... Qb2 {[%clk 0:01:08.5]} 26. Reb1 {[%clk 0:00:42.8]}
26... Qxe5 {[%clk 0:01:06.6]} 27. Re1 {[%clk 0:00:42.1]} 27... Qb2 {[%clk
0:01:00.6]} 28. Reb1 {[%clk 0:00:41.1]} 28... Qc2 {[%clk 0:00:57.8]} 29. Rc1
{[%clk 0:00:39.9]} 29... Qg6 {[%clk 0:00:57.3]} 30. Rd1 {[%clk 0:00:38.8]} 30...
Qg5 {[%clk 0:00:49.3]} 31. Bd3 {[%clk 0:00:37.2]} 31... g6 {[%clk 0:00:47.3]}
32. h4 {[%clk 0:00:36.5]} 32... Qe5 {[%clk 0:00:44]} 33. Re1 {[%clk 0:00:28.7]}
33... Qg7 {[%clk 0:00:41.3]} 34. Rad1 {[%clk 0:00:28.9]} 34... h5 {[%clk
0:00:41.2]} 35. Kg2 {[%clk 0:00:25]} 35... Bd4 {[%clk 0:00:38.3]} 36. Bc2 {[%clk
0:00:18.6]} 36... Qf6 {[%clk 0:00:38.1]} 37. Qxf6 {[%clk 0:00:17.1]} 37... Bxf6
{[%clk 0:00:39]} 38. f4 {[%clk 0:00:16.7]} 38... Kg7 {[%clk 0:00:35.2]} 39. Kf3
{[%clk 0:00:16.8]} 39... Bd4 {[%clk 0:00:34.5]} 40. Ke4 {[%clk 0:00:15.4]} 40...
c5 {[%clk 0:00:34.5]} 41. Kf3 {[%clk 0:00:15.8]} 41... Kf6 {[%clk 0:00:34.4]}
42. Be4 {[%clk 0:00:16]} 42... Rab8 {[%clk 0:00:33.2]} 43. Rd2 {[%clk 0:00:16]}
43... Rd6 {[%clk 0:00:33.1]} 44. Red1 {[%clk 0:00:16.1]} 44... b5 {[%clk
0:00:32.9]} 45. cxb5 {[%clk 0:00:15.6]} 45... Rxb5 {[%clk 0:00:33.1]} 46. Bd3
{[%clk 0:00:16.2]} 46... Rb4 {[%clk 0:00:32.8]} 47. Bc4 {[%clk 0:00:15.2]} 47...
a4 {[%clk 0:00:32.2]} 48. Kg2 {[%clk 0:00:15]} 48... a3 {[%clk 0:00:30.4]} 49.
Kf3 {[%clk 0:00:14.7]} 49... Rdb6 {[%clk 0:00:30.4]} 50. Ke4 {[%clk 0:00:14.6]}
50... Ke7 {[%clk 0:00:29.7]} 51. Kf3 {[%clk 0:00:14.7]} 51... f6 {[%clk
0:00:27.3]} 52. Re2 {[%clk 0:00:13.8]} 52... e5 {[%clk 0:00:27.4]} 53. fxe5
{[%clk 0:00:13.6]} 53... fxe5 {[%clk 0:00:27.7]} 54. Kg2 {[%clk 0:00:14.2]}
54... Rxc4 {[%clk 0:00:27.4]} 55. bxc4 {[%clk 0:00:12.5]} 55... Rb4 {[%clk
0:00:27.9]} 56. Rc2 {[%clk 0:00:11.5]} 56... Ke6 {[%clk 0:00:27.8]} 57. Kf3
{[%clk 0:00:10.6]} 57... Kf5 {[%clk 0:00:27.5]} 58. Kg2 {[%clk 0:00:09.9]} 58...
e4 {[%clk 0:00:27.6]} 59. Rf1+ {[%clk 0:00:10]} 59... Ke5 {[%clk 0:00:28]} 60.
Re1 {[%clk 0:00:10]} 60... e3 {[%clk 0:00:23.6]} 61. Kf3 {[%clk 0:00:08.9]}
61... Rb8 {[%clk 0:00:24.1]} 62. Rxe3+ {[%clk 0:00:06.5]} 62... Bxe3 {[%clk
0:00:22.8]} 63. Kxe3 {[%clk 0:00:07.4]} 63... Rb2 {[%clk 0:00:22.2]} 64. Kd3
{[%clk 0:00:07.5]} 64... Rb1 {[%clk 0:00:11.5]} 65. Rc3 {[%clk 0:00:06.1]} 65...
Rg1 {[%clk 0:00:10.2]} 66. Kc2 {[%clk 0:00:06.3]} 66... Kd4 {[%clk 0:00:09.8]}
67. Kb3 {[%clk 0:00:04.7]} 67... Rb1+ {[%clk 0:00:08.1]} 0-1

[Event "Late-Titled-Tuesday-Blitz-June-04-2024"]
[Site "Chess.com"]
[Date "2024.06.04"]
[Round "4"]
[White "lamomiajunior"]
[Black "PotapovaM"]
[Result "0-1"]
[WhiteElo "2720"]
[BlackElo "2551"]
[TimeControl "180+1"]
[EndTime "14:39:45 PDT"]
[Termination "PotapovaM won by resignation"]

1. e4 {[%clk 0:03:00.9]} 1... g6 {[%clk 0:02:54.9]} 2. d4 {[%clk 0:03:00.5]}
2... Bg7 {[%clk 0:02:54.3]} 3. Nc3 {[%clk 0:03:00.9]} 3... d6 {[%clk 0:02:52.6]}
4. Be3 {[%clk 0:02:59.2]} 4... a6 {[%clk 0:02:47.4]} 5. Nf3 {[%clk 0:02:55.2]}
5... b5 {[%clk 0:02:31.6]} 6. Bd3 {[%clk 0:02:54.9]} 6... Nd7 {[%clk 0:02:26.1]}
7. O-O {[%clk 0:02:54.9]} 7... Bb7 {[%clk 0:02:25]} 8. a4 {[%clk 0:02:55.4]}
8... c6 {[%clk 0:02:22.7]} 9. Re1 {[%clk 0:02:52.8]} 9... Ngf6 {[%clk
0:02:10.5]} 10. Qd2 {[%clk 0:02:52.7]} 10... Ng4 {[%clk 0:02:03.6]} 11. Bg5
{[%clk 0:02:51.8]} 11... h6 {[%clk 0:02:01.8]} 12. Bh4 {[%clk 0:02:52.1]} 12...
O-O {[%clk 0:01:56.4]} 13. h3 {[%clk 0:02:48.8]} 13... Ngf6 {[%clk 0:01:55.6]}
14. e5 {[%clk 0:02:49]} 14... dxe5 {[%clk 0:01:55]} 15. dxe5 {[%clk 0:02:49.9]}
15... Nd5 {[%clk 0:01:11.3]} 16. Nxd5 {[%clk 0:02:48.6]} 16... cxd5 {[%clk
0:01:11.2]} 17. e6 {[%clk 0:02:49.3]} 17... fxe6 {[%clk 0:01:06.3]} 18. Rxe6
{[%clk 0:02:44]} 18... g5 {[%clk 0:00:58.3]} 19. Bg3 {[%clk 0:02:38.3]} 19...
Nc5 {[%clk 0:00:54.9]} 20. Ree1 {[%clk 0:02:38.1]} 20... Nxd3 {[%clk 0:00:53]}
21. Qxd3 {[%clk 0:02:39]} 21... bxa4 {[%clk 0:00:32.3]} 22. Be5 {[%clk
0:02:38.5]} 22... Rf7 {[%clk 0:00:17]} 23. Bxg7 {[%clk 0:02:38.1]} 23... Rxg7
{[%clk 0:00:17.9]} 24. Nd4 {[%clk 0:02:36.9]} 24... Bc8 {[%clk 0:00:17.9]} 25.
Rxa4 {[%clk 0:02:34.4]} 25... Qd6 {[%clk 0:00:18.2]} 26. Nf3 {[%clk 0:02:31.1]}
26... Bd7 {[%clk 0:00:18.2]} 27. Rd4 {[%clk 0:02:28.6]} 27... Bb5 {[%clk
0:00:17.9]} 28. Qd2 {[%clk 0:02:28.2]} 28... e6 {[%clk 0:00:17]} 29. c4 {[%clk
0:02:28.4]} 29... Bc6 {[%clk 0:00:16.7]} 30. Ne5 {[%clk 0:02:28.4]} 30... Bb7
{[%clk 0:00:16.2]} 31. b4 {[%clk 0:02:27.5]} 31... Rf8 {[%clk 0:00:14.9]} 32. c5
{[%clk 0:02:27.6]} 32... Qe7 {[%clk 0:00:15.3]} 33. Ng4 {[%clk 0:02:20.1]} 33...
Rg6 {[%clk 0:00:13.3]} 34. Ne5 {[%clk 0:02:16.5]} 34... Rg7 {[%clk 0:00:13.4]}
35. f3 {[%clk 0:02:17.1]} 35... h5 {[%clk 0:00:13]} 36. Qe3 {[%clk 0:02:13.8]}
36... Bc8 {[%clk 0:00:11.7]} 37. Rdd1 {[%clk 0:02:12.9]} 37... Qf6 {[%clk
0:00:11.1]} 38. Qd4 {[%clk 0:02:12.7]} 38... Qh6 {[%clk 0:00:10]} 39. c6 {[%clk
0:02:12.1]} 39... Rf4 {[%clk 0:00:09.4]} 40. Qb6 {[%clk 0:02:09.9]} 40... Rf8
{[%clk 0:00:09.7]} 41. Qe3 {[%clk 0:02:01.9]} 41... Qf6 {[%clk 0:00:09.3]} 42.
Rc1 {[%clk 0:01:59.7]} 42... Rc7 {[%clk 0:00:07.1]} 43. Qb6 {[%clk 0:01:58]}
43... Rg7 {[%clk 0:00:07.4]} 44. c7 {[%clk 0:01:57.7]} 44... Qf5 {[%clk
0:00:06.9]} 45. Qd4 {[%clk 0:01:54.3]} 45... Qf6 {[%clk 0:00:02.2]} 46. Rc5
{[%clk 0:01:51.7]} 46... Qf5 {[%clk 0:00:02.5]} 47. Rec1 {[%clk 0:01:51.4]}
47... Qf6 {[%clk 0:00:02.8]} 48. Nc6 {[%clk 0:01:51]} 48... Qh6 {[%clk
0:00:02.5]} 49. Na7 {[%clk 0:01:49.6]} 49... g4 {[%clk 0:00:01.4]} 50. hxg4
{[%clk 0:01:47.8]} 50... hxg4 {[%clk 0:00:01.5]} 51. Nxc8 {[%clk 0:01:39.7]}
51... Rxc8 {[%clk 0:00:02.4]} 52. fxg4 {[%clk 0:01:39.8]} 52... Rh7 {[%clk
0:00:03]} 53. Qe5 {[%clk 0:01:10.8]} 53... Rf8 {[%clk 0:00:03.2]} 54. Qh5 {[%clk
0:01:01.1]} 54... Qe3+ {[%clk 0:00:03.1]} 55. Kh2 {[%clk 0:01:00.2]} 55... Rxh5+
{[%clk 0:00:03.7]} 56. gxh5 {[%clk 0:01:01.1]} 56... Qf4+ {[%clk 0:00:04.2]} 57.
Kg1 {[%clk 0:01:00.9]} 57... Qd4+ {[%clk 0:00:03.5]} 58. Kh1 {[%clk 0:01:00.1]}
58... Qh4+ {[%clk 0:00:04.4]} 59. Kg1 {[%clk 0:01:00.6]} 59... Qd4+ {[%clk
0:00:04.7]} 60. Kh1 {[%clk 0:01:01]} 60... Rc8 {[%clk 0:00:05]} 61. b5 {[%clk
0:00:58.1]} 61... Qh4+ {[%clk 0:00:04.4]} 62. Kg1 {[%clk 0:00:58.3]} 62... axb5
{[%clk 0:00:05.3]} 63. Rxb5 {[%clk 0:00:57.7]} 63... Qd4+ {[%clk 0:00:05.4]} 64.
Kh1 {[%clk 0:00:57.6]} 64... Qe3 {[%clk 0:00:05.5]} 65. Rbb1 {[%clk 0:00:54.7]}
65... Qe5 {[%clk 0:00:04.9]} 66. Rb7 {[%clk 0:00:52.5]} 66... Qxh5+ {[%clk
0:00:04.3]} 67. Kg1 {[%clk 0:00:53]} 67... Qe5 {[%clk 0:00:04.9]} 68. Kh1 {[%clk
0:00:45.9]} 68... d4 {[%clk 0:00:03.9]} 69. Rb3 {[%clk 0:00:28.8]} 69... Rxc7
{[%clk 0:00:03.7]} 70. Rf1 {[%clk 0:00:28.4]} 70... Rh7+ {[%clk 0:00:03.1]} 71.
Kg1 {[%clk 0:00:28.8]} 71... Qh2+ {[%clk 0:00:03.4]} 72. Kf2 {[%clk 0:00:28.7]}
72... Rf7+ {[%clk 0:00:04.3]} 73. Ke2 {[%clk 0:00:29.1]} 73... Qxg2+ {[%clk
0:00:04.4]} 0-1

[Event "Late-Titled-Tuesday-Blitz-June-04-2024"]
[Site "Chess.com"]
[Date "2024.06.04"]
[Round "4"]
[White "Tol_Tol"]
[Black "zacachess"]
[Result "1-0"]
[WhiteElo "2383"]
[BlackElo "2522"]
[TimeControl "180+1"]
[EndTime "14:39:48 PDT"]
[Termination "Tol_Tol won by checkmate"]

1. d4 {[%clk 0:03:00.9]} 1... Nf6 {[%clk 0:02:59.7]} 2. c4 {[%clk 0:03:00.7]}
2... e6 {[%clk 0:03:00.1]} 3. Nc3 {[%clk 0:02:59.2]} 3... Bb4 {[%clk 0:03:00.5]}
4. e3 {[%clk 0:02:59.4]} 4... b6 {[%clk 0:03:00]} 5. Bd3 {[%clk 0:02:59.3]} 5...
Bb7 {[%clk 0:02:59.1]} 6. Nf3 {[%clk 0:02:59.9]} 6... O-O {[%clk 0:02:59.1]} 7.
O-O {[%clk 0:02:59.8]} 7... c5 {[%clk 0:02:59.7]} 8. Na4 {[%clk 0:02:54.3]} 8...
cxd4 {[%clk 0:02:58.2]} 9. a3 {[%clk 0:02:53.9]} 9... Be7 {[%clk 0:02:53.5]} 10.
exd4 {[%clk 0:02:53.8]} 10... d5 {[%clk 0:02:41.8]} 11. c5 {[%clk 0:02:53.6]}
11... Ne4 {[%clk 0:01:19]} 12. b4 {[%clk 0:02:39.1]} 12... Nd7 {[%clk
0:01:18.8]} 13. Be3 {[%clk 0:02:15.2]} 13... f5 {[%clk 0:01:17.2]} 14. Rc1
{[%clk 0:02:00]} 14... Rc8 {[%clk 0:01:12.9]} 15. Re1 {[%clk 0:01:44.6]} 15...
Bf6 {[%clk 0:01:12.5]} 16. Bb1 {[%clk 0:01:35.3]} 16... g5 {[%clk 0:01:11.7]}
17. Nd2 {[%clk 0:00:50.9]} 17... f4 {[%clk 0:00:56.1]} 18. Nxe4 {[%clk
0:00:47.1]} 18... dxe4 {[%clk 0:00:56.2]} 19. Bd2 {[%clk 0:00:46.2]} 19... Bxd4
{[%clk 0:00:41.7]} 20. Bxe4 {[%clk 0:00:36.9]} 20... Bxe4 {[%clk 0:00:38.7]} 21.
Rxe4 {[%clk 0:00:36.8]} 21... bxc5 {[%clk 0:00:37.8]} 22. Rxe6 {[%clk
0:00:28.5]} 22... Rf6 {[%clk 0:00:16.9]} 23. Qg4 {[%clk 0:00:21.6]} 23... Rxe6
{[%clk 0:00:14.7]} 24. Qxe6+ {[%clk 0:00:21.4]} 24... Kg7 {[%clk 0:00:15.6]} 25.
bxc5 {[%clk 0:00:16.7]} 25... Nxc5 {[%clk 0:00:13.3]} 26. Nxc5 {[%clk
0:00:16.3]} 26... Rxc5 {[%clk 0:00:13.3]} 27. Rxc5 {[%clk 0:00:15.8]} 27... Bxc5
{[%clk 0:00:14.2]} 28. Bc3+ {[%clk 0:00:16.3]} 28... Kf8 {[%clk 0:00:11.4]} 29.
Qf5+ {[%clk 0:00:15.4]} 29... Ke8 {[%clk 0:00:10.7]} 30. Qe5+ {[%clk 0:00:15.1]}
30... Kf8 {[%clk 0:00:09.4]} 31. Qf5+ {[%clk 0:00:14]} 31... Ke8 {[%clk
0:00:09.3]} 32. h4 {[%clk 0:00:13.7]} 32... Qd1+ {[%clk 0:00:08.8]} 33. Kh2
{[%clk 0:00:13.8]} 33... Qh5 {[%clk 0:00:09]} 34. Qxc5 {[%clk 0:00:12.4]} 34...
Qxh4+ {[%clk 0:00:07.7]} 35. Kg1 {[%clk 0:00:12.1]} 35... Qh5 {[%clk 0:00:08]}
36. Qe5+ {[%clk 0:00:06.5]} 36... Kd7 {[%clk 0:00:08.4]} 37. Bb4 {[%clk
0:00:05.8]} 37... Qd1+ {[%clk 0:00:08]} 38. Qe1 {[%clk 0:00:06]} 38... Qd5
{[%clk 0:00:07.7]} 39. Qe7+ {[%clk 0:00:05.9]} 39... Kc6 {[%clk 0:00:06.8]} 40.
Qxh7 {[%clk 0:00:06.1]} 40... g4 {[%clk 0:00:05.3]} 41. Qg6+ {[%clk 0:00:05.2]}
41... Kb5 {[%clk 0:00:05.7]} 42. Qxg4 {[%clk 0:00:06.1]} 42... Qc4 {[%clk
0:00:05.3]} 43. Qf3 {[%clk 0:00:05.9]} 43... a5 {[%clk 0:00:05.3]} 44. Be1
{[%clk 0:00:05]} 44... Ka4 {[%clk 0:00:04.8]} 45. g3 {[%clk 0:00:04.7]} 45...
fxg3 {[%clk 0:00:04.6]} 46. fxg3 {[%clk 0:00:05.3]} 46... Qd4+ {[%clk
0:00:04.8]} 47. Bf2 {[%clk 0:00:04.7]} 47... Qc4 {[%clk 0:00:04.6]} 48. Qf4
{[%clk 0:00:04.7]} 48... Qxf4 {[%clk 0:00:04]} 49. gxf4 {[%clk 0:00:05]} 49...
Kxa3 {[%clk 0:00:04.9]} 50. f5 {[%clk 0:00:05.6]} 50... Kb3 {[%clk 0:00:04.4]}
51. f6 {[%clk 0:00:06.5]} 51... a4 {[%clk 0:00:04]} 52. f7 {[%clk 0:00:07.4]}
52... a3 {[%clk 0:00:04.2]} 53. f8=Q {[%clk 0:00:07]} 53... Ka2 {[%clk
0:00:05.1]} 54. Qc8 {[%clk 0:00:04.7]} 54... Kb1 {[%clk 0:00:06]} 55. Qf5+
{[%clk 0:00:03.5]} 55... Ka2 {[%clk 0:00:05.9]} 56. Qd5+ {[%clk 0:00:02.9]}
56... Kb1 {[%clk 0:00:06.8]} 57. Bd4 {[%clk 0:00:03.2]} 57... a2 {[%clk
0:00:06.7]} 58. Qb3+ {[%clk 0:00:03.7]} 58... Kc1 {[%clk 0:00:07]} 59. Qxa2
{[%clk 0:00:04.1]} 59... Kd1 {[%clk 0:00:07.2]} 60. Bc3 {[%clk 0:00:02]} 60...
Kc1 {[%clk 0:00:06.9]} 61. Qb2+ {[%clk 0:00:02.7]} 61... Kd1 {[%clk 0:00:07]}
62. Qd2# {[%clk 0:00:03.6]} 1-0

[Event "Late-Titled-Tuesday-Blitz-June-04-2024"]
[Site "Chess.com"]
[Date "2024.06.04"]
[Round "4"]
[White "HeinichessPY"]
[Black "zverr1"]
[Result "0-1"]
[WhiteElo "2278"]
[BlackElo "2605"]
[TimeControl "180+1"]
[EndTime "14:39:51 PDT"]
[Termination "zverr1 won on time"]

1. e4 {[%clk 0:03:00.9]} 1... c5 {[%clk 0:02:59.1]} 2. Nf3 {[%clk 0:02:59.5]}
2... Nc6 {[%clk 0:02:57.4]} 3. Nc3 {[%clk 0:02:51.9]} 3... g6 {[%clk 0:02:56.8]}
4. g3 {[%clk 0:02:50]} 4... Bg7 {[%clk 0:02:56.9]} 5. Bg2 {[%clk 0:02:50.3]}
5... e5 {[%clk 0:02:55.6]} 6. O-O {[%clk 0:02:49.5]} 6... Nge7 {[%clk
0:02:56.3]} 7. d3 {[%clk 0:02:47.4]} 7... O-O {[%clk 0:02:56]} 8. Be3 {[%clk
0:02:46]} 8... d6 {[%clk 0:02:52.5]} 9. Qd2 {[%clk 0:02:46.5]} 9... Nd4 {[%clk
0:02:49.7]} 10. Ne1 {[%clk 0:02:41.6]} 10... Rb8 {[%clk 0:02:35.8]} 11. Nd1
{[%clk 0:02:41.4]} 11... b5 {[%clk 0:02:30.4]} 12. c3 {[%clk 0:02:41.9]} 12...
Ndc6 {[%clk 0:02:29.2]} 13. Bh6 {[%clk 0:02:42.5]} 13... b4 {[%clk 0:02:19.1]}
14. Bxg7 {[%clk 0:02:41.4]} 14... Kxg7 {[%clk 0:02:19.3]} 15. f4 {[%clk
0:02:40.1]} 15... f6 {[%clk 0:02:15.7]} 16. Ne3 {[%clk 0:02:32]} 16... Be6
{[%clk 0:02:08.5]} 17. Nf3 {[%clk 0:02:19.6]} 17... bxc3 {[%clk 0:02:03.3]} 18.
bxc3 {[%clk 0:02:19.3]} 18... Qa5 {[%clk 0:02:00]} 19. Nh4 {[%clk 0:02:15.1]}
19... Bg8 {[%clk 0:01:01.5]} 20. fxe5 {[%clk 0:01:40.5]} 20... Nxe5 {[%clk
0:00:51.4]} 21. Rf2 {[%clk 0:01:27.5]} 21... Be6 {[%clk 0:00:41.2]} 22. Raf1
{[%clk 0:01:26.6]} 22... Rf7 {[%clk 0:00:36.3]} 23. h3 {[%clk 0:01:13]} 23...
Rbf8 {[%clk 0:00:21]} 24. g4 {[%clk 0:01:13.4]} 24... Qc7 {[%clk 0:00:12.8]} 25.
Nf3 {[%clk 0:00:57.4]} 25... Nxf3+ {[%clk 0:00:12.6]} 26. Bxf3 {[%clk 0:00:58]}
26... Qd7 {[%clk 0:00:11]} 27. Bd1 {[%clk 0:00:57.4]} 27... d5 {[%clk
0:00:10.8]} 28. Bb3 {[%clk 0:00:38.4]} 28... dxe4 {[%clk 0:00:09.8]} 29. dxe4
{[%clk 0:00:39.3]} 29... Qxd2 {[%clk 0:00:07.9]} 30. Rxd2 {[%clk 0:00:40.2]}
30... Bxb3 {[%clk 0:00:07.9]} 31. axb3 {[%clk 0:00:40.6]} 31... Nc6 {[%clk
0:00:07.6]} 32. Nc4 {[%clk 0:00:37.2]} 32... Re7 {[%clk 0:00:06]} 33. Re1 {[%clk
0:00:37]} 33... Rfe8 {[%clk 0:00:03.7]} 34. Rd6 {[%clk 0:00:34.3]} 34... Ne5
{[%clk 0:00:03.8]} 35. Ra6 {[%clk 0:00:27.4]} 35... Nxc4 {[%clk 0:00:03.8]} 36.
bxc4 {[%clk 0:00:28.3]} 36... Rxe4 {[%clk 0:00:04]} 37. Rxa7+ {[%clk 0:00:27.6]}
37... Kh6 {[%clk 0:00:04.3]} 38. Rd1 {[%clk 0:00:24.2]} 38... Re3 {[%clk
0:00:04.6]} 39. Rdd7 {[%clk 0:00:24.4]} 39... Rxh3 {[%clk 0:00:03.4]} 40. Kg2
{[%clk 0:00:23.9]} 40... Rxc3 {[%clk 0:00:03.2]} 41. Rxh7+ {[%clk 0:00:22.5]}
41... Kg5 {[%clk 0:00:03.6]} 42. Rac7 {[%clk 0:00:21.6]} 42... Re2+ {[%clk
0:00:03.8]} 43. Kf1 {[%clk 0:00:20.9]} 43... Re5 {[%clk 0:00:03.5]} 44. Rhd7
{[%clk 0:00:16.7]} 44... Rxc4 {[%clk 0:00:03.9]} 45. Kf2 {[%clk 0:00:16.3]}
45... Rf4+ {[%clk 0:00:03.9]} 46. Kg1 {[%clk 0:00:14.5]} 46... Rxg4+ {[%clk
0:00:04.8]} 47. Kf2 {[%clk 0:00:12.6]} 47... Rf4+ {[%clk 0:00:05.1]} 48. Kg3
{[%clk 0:00:13.2]} 48... Rg4+ {[%clk 0:00:03.9]} 49. Kf3 {[%clk 0:00:13.4]}
49... Rc4 {[%clk 0:00:03.8]} 50. Rd1 {[%clk 0:00:12.7]} 50... Rf5+ {[%clk
0:00:03.7]} 51. Kg3 {[%clk 0:00:13.2]} 51... Rc3+ {[%clk 0:00:03.6]} 52. Kg2
{[%clk 0:00:13.1]} 52... Re5 {[%clk 0:00:02.1]} 53. Rd2 {[%clk 0:00:11.4]} 53...
Rce3 {[%clk 0:00:01.3]} 54. Rc2 {[%clk 0:00:10.9]} 54... Re2+ {[%clk 0:00:01.8]}
55. Rxe2 {[%clk 0:00:11.6]} 55... Rxe2+ {[%clk 0:00:02.7]} 56. Kf3 {[%clk
0:00:12.4]} 56... Re5 {[%clk 0:00:03.6]} 57. Rc8 {[%clk 0:00:11.5]} 57... Rf5+
{[%clk 0:00:04.5]} 58. Kg3 {[%clk 0:00:11.5]} 58... Re5 {[%clk 0:00:05.4]} 59.
Rc6 {[%clk 0:00:11.8]} 59... Kf5 {[%clk 0:00:06.3]} 60. Rc7 {[%clk 0:00:12.4]}
60... g5 {[%clk 0:00:07.2]} 61. Rc6 {[%clk 0:00:12.9]} 61... Re3+ {[%clk
0:00:07.6]} 62. Kf2 {[%clk 0:00:11.6]} 62... Rc3 {[%clk 0:00:08.5]} 63. Ke2
{[%clk 0:00:11.5]} 63... g4 {[%clk 0:00:08.7]} 64. Rc8 {[%clk 0:00:10.9]} 64...
Kf4 {[%clk 0:00:07.9]} 65. Rf8 {[%clk 0:00:10.8]} 65... f5 {[%clk 0:00:08.3]}
66. Kf2 {[%clk 0:00:11.2]} 66... Rc2+ {[%clk 0:00:08.5]} 67. Kf1 {[%clk
0:00:11.6]} 67... g3 {[%clk 0:00:09]} 68. Kg1 {[%clk 0:00:11.1]} 68... Kg4
{[%clk 0:00:09]} 69. Rg8+ {[%clk 0:00:11.1]} 69... Kf3 {[%clk 0:00:09.4]} 0-1